Cogmind - Beta 11.1 @@@ ROGUE MODE // 2022.10.05 @ 21:44:55 Player: Fenrir Result: Destroyed by G-34 Mercenary with Small Laser Performance ------------- Evolutions (0) 0 Regions Visited (1) 200 Robots Destroyed (10) 50 Value Destroyed (209) 209 Prototype IDs (4) 80 Alien Tech Used (0) 0 Bonus (0) 0 TOTAL SCORE: 539 Bonus ------- None Cogmind --------- Core Integrity 0/250 Matter 300/300 Energy 125/125 System Corruption 0% Temperature Cool (6) Movement Core (250) Ox4 Location -10/Materials Parts ------- > --- POWER (1) -------- Light Ion Engine > --- PROPULSION (2) --- (None) > --- UTILITY (2) ------ Medium Storage Unit Signal Interpreter > --- WEAPON (2) ------- (None) > --- INVENTORY (10) --- Improved Heat Sink Structural Scanner Sensor Array Targeting Computer ECM Suite Light Assault Rifle Peak State ------------ > --- POWER ------------ Ion Engine > --- PROPULSION ------- Wheel Wheel > --- UTILITY ---------- Small Storage Unit Signal Interpreter > --- WEAPON ----------- EM Pulse Gun EM Pulse Gun > --- INVENTORY -------- Targeting Computer Medium Laser [Rating: 7] Favorites ----------- Power Ion Engine Engine Ion Engine Propulsion Wheel Wheel Wheel Utility Signal Interpreter Storage Small Storage Unit Processor Signal Interpreter Weapon EM Pulse Gun Energy Gun EM Pulse Gun Build | -11 -10 ------- Run | Scr Mat Slots Evolved . | . . Power . | . . Propulsion . | . . Utility . | . . Weapon . | . . Parts Attached 10 | 6 4 Power 2 | 1 1 Engine 2 | 1 1 Core . | . . Reactor . | . . Propulsion 2 | 2 . Treads . | . . Leg . | . . Wheel 2 | 2 . Hover . | . . Flight . | . . Utility 3 | 1 2 Device . | . . Storage 2 | 1 1 Processor 1 | . 1 Hackware . | . . Protection . | . . Artifact . | . . Weapon 3 | 2 1 Energy Gun 3 | 2 1 Energy Cannon . | . . Ballistic Gun . | . . Ballistic Cannon . | . . Launcher . | . . Special Weapon . | . . Impact Weapon . | . . Slashing Weapon . | . . Piercing Weapon . | . . Special Melee Weapon . | . . Unidentified Prototypes . | . . Parts Lost 6 | . 6 Power 1 | . 1 Propulsion 2 | . 2 Utility . | . . Weapon 3 | . 3 Highest Loss Streak 5 | . 5 To Critical Strikes . | . . Average Slot Usage (%) 92 | . 92 Engine 12 | . 12 Wheel 24 | . 24 Storage 14 | . 14 Processor 13 | . 13 Energy Gun 26 | . 26 Naked Turns . | . . Heaviest Build 19 | 14 19 Greatest Support 20 | 20 20 Greatest Overweight (x) 4 | . 4 Average Overweight (x) . | . . Largest Inventory Capacity 10 | 8 10 Average Capacity 8 | 6 8 Most Carried 6 | 5 6 Average Carried 3 | 1 4 Final Capacity 10 | 8 10 Final Carried 6 | 1 6 Class Distribution -------------------- 100% | Mutant Dominant Class ---------------- Mutant | -10/Materials Resources | -11 -10 ----------- Run | Scr Mat Matter Collected 290 | 219 71 Remotely . | . . Salvage Created 292 | . 292 Parts 18 | . 18 Haulers Intercepted . | . . Recyclers Shooed . | . . Parts Field Recycled . | . . Retrieved Matter . | . . Parts Self-Destructed . | . . Prevented . | . . Kills | -11 -10 ------- Run | Scr Mat Combat Hostiles Destroyed 6 | . 6 Guns 6 | . 6 Classes Destroyed 4 | . 4 Operator 1 | . 1 Watcher 3 | . 3 Swarmer 3 | . 3 Grunt 3 | . 3 Best Kill Streak 4 | . 4 Combat Bots Only 3 | . 3 Max Kills in Single Turn 1 | . 1 Gunslinging . | . . Exploded . | . . Melee . | . . Uniques/NPCs Destroyed . | . . Combat | -11 -10 -------- Run | Scr Mat Damage Taken 704 | . 704 Core 258 | . 258 Absorbed by Shields . | . . Core Remaining (%) 100 | 100 . Volleys Fired 44 | . 44 Largest 2 | . 2 Hottest 80 | . 80 Shots Fired 68 | . 68 Gun 68 | . 68 Cannon . | . . Launcher . | . . Special . | . . Kinetic . | . . Thermal 19 | . 19 Explosive . | . . Electromagnetic 49 | . 49 Robot Hit Streak 7 | . 7 Robot Miss Streak 6 | . 6 Penetration Max . | . . Secondary Targets . | . . Shots Hit Robots 39 | . 39 Core Hits 15 | . 15 Critical Kills . | . . Critical Parts Destroyed . | . . Critical Strikes 1 | . 1 Burn 1 | . 1 Melee Attacks . | . . Impact . | . . Slashing . | . . Piercing . | . . Sneak Attacks . | . . Combat Hostiles . | . . Follow-up Attacks . | . . Damage Inflicted 611 | . 611 Guns 578 | . 578 Cannons . | . . Explosions 33 | . 33 Melee . | . . Ramming . | . . Kinetic . | . . Thermal 133 | . 133 Explosive . | . . Electromagnetic 478 | . 478 Impact . | . . Slashing . | . . Piercing . | . . Highest Corruption . | . . Average Corruption . | . . Corruption Purged . | . . Corruption Blocked . | . . Overload Shots . | . . Overflow Damage . | . . Projectiles . | . . Explosions . | . . Melee . | . . Knockbacks . | . . Impact . | . . Kinetic . | . . Secondary . | . . Self-Inflicted Damage 8 | . 8 Shots 1 | . 1 Rammed . | . . Targets Rammed . | . . Kicked . | . . Crushed . | . . Highest Temperature 258 | . 258 Average Temperature 120 | . 120 Received Heat Transfer 249 | . 249 Effects 1 | . 1 Energy Bleed 1 | . 1 Siege Activations . | . . Robots Corrupted . | . . Combat Hostiles . | . . Parts Fried 1 | . 1 Impact Corruptions . | . . Robots Melted . | . . Combat Hostiles . | . . Parts Melted 2 | . 2 Heat Transferred 420 | . 420 Parts Sabotaged . | . . Parts Stolen . | . . Parts Stripped . | . . Power Chain Reactions 1 | . 1 Missiles Intercepted . | . . Alert | -11 -10 ------- Run | Scr Mat Peak Influence 153 | . 153 Initial . | . . Average 75 | . 83 Maximum Alert Level . | . . Low Security (%) 100 | 100 100 Level 1 . | . . Level 2 . | . . Level 3 . | . . Level 4 . | . . Level 5 . | . . High Security . | . . Max Security . | . . Squads Dispatched . | . . Investigation . | . . Extermination . | . . Reinforcement . | . . Assault . | . . Garrison . | . . Intercept . | . . Searches Triggered . | . . Construction Impeded . | . . Haulers Reinforced . | . . Active Scanning Responses . | . . Cargo Convoy Interrupts . | . . Stealth | -11 -10 --------- Run | Scr Mat Distress Signals 1 | . 1 Communications Jammed . | . . Distress Signals . | . . Times Spotted 13 | . 13 Peak Tracking Total 5 | . 5 Tactical Retreats 1 | . 1 Traps | -11 -10 ------- Run | Scr Mat Traps Triggered . | . . Indirectly . | . . Trap Hack Attempts . | . . Triggered . | . . Disarmed . | . . Reprogrammed . | . . Reused . | . . Traps Extracted . | . . Installed . | . . Triggered . | . . Machines | -11 -10 ---------- Run | Scr Mat Machines Disabled . | . . Max in Single Turn . | . . Machines Sabotaged . | . . Garrisons Compromised . | . . Overloaded Fab Kills . | . . Hacking | -11 -10 --------- Run | Scr Mat Machines Accessed 6 | . 6 Terminals 5 | . 5 Fabricators . | . . Repair Stations . | . . Recycling Units 1 | . 1 Scanalyzers . | . . Garrison Access . | . . Total Hacks 17 | . 17 Successful 11 | . 11 Failed 6 | . 6 Catastrophic . | . . Database Lockouts . | . . Manual . | . . Terminals 16 | . 16 Fabricators . | . . Repair Stations . | . . Recycling Units 1 | . 1 Scanalyzers . | . . Garrison Access . | . . Terminal Hacks 10 | . 10 Record 4 | . 4 Prototype ID Bank 2 | . 2 Alert Level 1 | . 1 Investigation Status 1 | . 1 Hauler Manifests 1 | . 1 Registered Components 1 | . 1 Fabricator Hacks . | . . Repair Station Hacks . | . . Recycling Unit Hacks 1 | . 1 Report Inventory 1 | . 1 Scanalyzer . | . . Garrison Access Hacks . | . . Unauthorized Hacks . | . . Terminals . | . . Fabricators . | . . Repair Stations . | . . Recycling Units . | . . Scanalyzers . | . . Garrison Access . | . . Data Cores Recovered 1 | . 1 Used 1 | . 1 Hacking Detections 3 | . 3 Full Trace Events . | . . Feedback Events . | . . Feedback Blocked . | . . Robot Schematics Acquired . | . . Robots Built . | . . Authchips . | . . Time . | . . Total Robot Build Rating . | . . Part Schematics Acquired . | . . Parts Built . | . . Authchips . | . . Time . | . . Total Part Build Rating . | . . Parts Repaired . | . . Time . | . . Parts Recycled . | . . Recycled Matter . | . . Retrieved Matter . | . . Retrieved Components . | . . Parts Scanalyzed . | . . Part Schematics Acquired . | . . Parts Damaged . | . . Bothacking | -11 -10 ------------ Run | Scr Mat Used RIF Installer . | . . Robots Hacked . | . . Non-combat . | . . Combat . | . . Robot Hacks Applied . | . . Relay Couplers Released . | . . Fabnet Peak Effective % . | . . Robots Rewired . | . . Allies Hacked . | . . Hacks Repelled . | . . Allies | -11 -10 -------- Run | Scr Mat Total Allies . | . . Largest Group . | . . Highest-Rated Group . | . . Highest-Rated Ally . | . . Total Orders . | . . Ally Attacks . | . . Total Damage . | . . Kills . | . . Allies Corrupted . | . . Allies Melted . | . . Intel | -11 -10 ------- Run | Scr Mat Robot Analysis Total . | . . Derelict Logs Recovered . | . . Drone Launches . | . . Drone Recoveries . | . . Exploration | -11 -10 ------------- Run | Scr Mat Turns Passed 561 | 53 508 Spaces Moved 498 | 43 455 Core 17 | 9 8 Treads . | . . Legs . | . . Wheels 481 | 34 447 Hover . | . . Flight . | . . Fastest Speed 50 | 50 80 Average Speed 81 | 73 82 Slowest Speed 250 | 80 250 Overloaded Moves . | . . Propulsion Burnouts . | . . Robots Hopped . | . . Cave-ins Triggered . | . . Exploration Rate (%) 40 | 4 76 Regions Visited 1 Branch Regions . Pre-discovered Areas . | . . Known Exits Taken . | . . Unknown Exits Taken 1 | 1 . Scrap Searched . | . . Spaces Dug . | . . Terrain Destroyed 3 | . 3 Melee . | . . Projectile . | . . AOE 3 | . 3 Terrain Rammed . | . . Walls Destroyed . | . . Machines Disabled . | . . Actions | -11 -10 --------- Run | Scr Mat Total 583 | 64 519 Wait 15 | 9 6 Move 497 | 42 455 Hop . | . . Pick Up 16 | 7 9 Fast Attach . | . . Attach 9 | 6 3 Detach . | . . Swap 1 | . 1 Drop 1 | . 1 Fire 44 | . 44 Melee . | . . Ram . | . . Kick . | . . Crush . | . . Escape Stasis . | . . Rewire . | . . Trap . | . . Miscellaneous . | . . Route ------- -11/Scrapyard -10/Materials (discovered 3 exits: [*Mat x2] / [*Min]) History --------- Turn | Location | Event 35 | -11/Scrapyard | Discovered new exit (range 12) 54 | -11/Scrapyard | Entered Materials 222 | -10/Materials | Discovered new exit (range 16) 315 | -10/Materials | Build established: Mutant 328 | -10/Materials | Discovered new exit (range 16) 393 | -10/Materials | Discovered new exit (range 9) 516 | -10/Materials | Core integrity fell below 50% 525 | -10/Materials | Core integrity fell below 20% 537 | -10/Materials | Lost 5 parts (1p2n2w) 562 | -10/Materials | Destroyed by G-34 Mercenary with Small Laser Last Messages --------------- 00495_ Ion Engine destroyed. 00498_ R-06 Scavenger collects Corrupted Aluminum Leg. 00499_ EM Pulse Gun destroyed. 00500_ S-10 Pest IFF system glitched. 00500_ S-10 Pest destroyed. 00500_ EM Pulse Gun destroyed. 00503_ Wheel destroyed. 00513_ S-10 Pest suffers critical hit (Burn). 00513_ Flight Unit melted. 00513_ Lgt. Assault Rifle melted. 00513_ S-10 Pest destroyed. 00522_ Overheating: Energy bleed (-13). 00525_ G-47 Trooper destroyed. 00543_ S-10 Pest destroyed. 00549_ Acquired Lgt. Ion Engine. 00552_ K-01 Serf collects debris. 00554_ Acquired 10 matter. 00555_ K-01 Serf collects debris. 00559_ Acquired Lgt. Assault Rifle. 00560_ Med. Laser destroyed. Map ----- +----------------------------------------------------+ | ????????????????# # ## ##??? | | ?????????????########+########+### #### | | ?????????????# T # | | ?????????????# # | | ?????????????# + | | ?????????????# # ########### =#### | | ?????????????# # %##????############## | | ??????# #######+## ####### #!= # | | ??????+ #!= + | | ??????# / #!= [ # | | ??????# # # | | ??????# ##+######### ##### ######## | | ??????#???????######## #?#####+#####????# | | ??????????????# # ### #????? | | ??????????????# """ # + #????? | | ??????????????# """ # ### #????? | | ??????????????# "" # #?# #????? | | ??????????????# # #?# #????? | | ??????????????# =!! # ### #????? | | ??????????????# = + + #????? | | ??????# ##### =! # ### #????? | | ?????+ *%=%%+[ #####?###########????? | | ???????## ##### ! #???????????????????## | | ??????????????# =%= #????????????? | | ??????????????# % = #????????????????????# | | ??????????########@###?????????????#######? | | ??????# % #????????###### #? | | ??????# g ^^ ??? #? | | ??????# T g ^^ #? | | ??????# ^^ ## | | ?????"" a ##+#########+?# | | ??????T """"" ##??????????????# ^ | | ??????" """""r #???????????????# ^ | | ??????# """"" #???????????????#" | | ??????#?????? #???????????????#T ^ | | ?????????????? #?!?????????????#" | | ?????????????""" #???????????????# ^ | | ??????????????"" #???????????????# | | ???????????????" #???????????????# | | ??????????????? ????????????????# " | | ??????????????? ??????????????### "" | | ????????????????# ??????????????#"" "" | | ??????????????????????????????????#"T """ | | ??????????????????????????????????#"" "" | | ????????????????????????????????? # """ | | ????????????????????????????????? # """ | | ?????????????????????????######## ## """ | | ?????????????????????????# ## # " | | ?????????????????????????# " ## # | | ?????????????????????????# """ ## # | +----------------------------------------------------+ Best States ------------- Heat Dissipation 25 Energy Generation 10 Energy Capacity 250 Matter Stores 300 Matter Capacity 300 Sight Range 16 Terrain Scan Density 10 Evasion (%) 50 Item Schematics ----------------- None Robot Schematics ------------------ None Fabricated ------------ Nothing Alien Tech Used ----------------- None Achievements -------------- Dynamic Key Challenges ------------ None Game ------ Seed OmegaLegLeg Manual? 0 Play Time 00:14:59 Cumulative 1.6 hours Start 2022.10.05 @ 21:28:38 End 2022.10.05 @ 21:44:55 Sessions 1 Manual Loads 0 Difficulty Rogue Special Mode None Game No. 5 Rogue 5 Adventurer 0 Explorer 0 Win Type - Total 0 Types 0/0/0/0/0/0/0/0/0 Lore% 4 Gallery% 5 Achievement% 6 Wizard Run 0 Options --------- ASCII 0 Keyboard 0 Movement Mouse Keybinds 0 Fullscreen 1 Font 18/X11Bold Map View 76x50 Tactical HUD 1 Map Filters NONE Filters NONE Steam 1 RUN: 21c7bbb7-282a-46da-a264-07ea6500fa95